[Event "Open Nuevo Centro. Jornada 2"]
[Site "Chess.com"]
[Date "2020.06.26"]
[Round "2"]
[White "Roca Cruz, Rafael"]
[Black "Aymerich Rosell, Pablo"]
[Result "1-0"]
[WhiteElo "1730"]
[BlackElo "1982"]
[TimeControl "180+2"]
[EndTime "10:52:33 PDT"]
[Termination "Victoria de RafaRocaCruz por jaque mate"]

1. d4 {[%clk 0:03:00]} 1... Nf6 {[%clk 0:02:59.8]} 2. c4 {[%clk 0:03:00.7]} 2...
g6 {[%clk 0:03:00.3]} 3. Nc3 {[%clk 0:03:01.6]} 3... Bg7 {[%clk 0:03:00.8]} 4.
e4 {[%clk 0:03:02.4]} 4... d6 {[%clk 0:03:01.7]} 5. Bg5 {[%clk 0:03:03.4]} 5...
O-O {[%clk 0:03:01.7]} 6. Qd2 {[%clk 0:03:04.3]} 6... c5 {[%clk 0:03:01.6]} 7.
d5 {[%clk 0:03:05.3]} 7... e6 {[%clk 0:03:01.1]} 8. Bd3 {[%clk 0:03:03.6]} 8...
exd5 {[%clk 0:03:01.5]} 9. exd5 {[%clk 0:03:05]} 9... Re8+ {[%clk 0:02:54.7]}
10. Nge2 {[%clk 0:03:05.9]} 10... Bg4 {[%clk 0:02:48.9]} 11. f3 {[%clk
0:02:57.8]} 11... Bd7 {[%clk 0:02:41.2]} 12. O-O {[%clk 0:02:58.4]} 12... Na6
{[%clk 0:02:40.6]} 13. Rae1 {[%clk 0:02:56.7]} 13... Nc7 {[%clk 0:02:37]} 14.
Ne4 {[%clk 0:02:57.3]} 14... Nxe4 {[%clk 0:02:24.5]} 15. fxe4 {[%clk 0:02:45.8]}
15... Qc8 {[%clk 0:02:16.9]} 16. Qf4 {[%clk 0:02:39.9]} 16... Rf8 {[%clk
0:01:35]} 17. Qxd6 {[%clk 0:02:37.3]} 17... Ne8 {[%clk 0:01:22.3]} 18. Qg3
{[%clk 0:02:23.2]} 18... f6 {[%clk 0:01:17.3]} 19. Bd2 {[%clk 0:02:09.7]} 19...
b5 {[%clk 0:01:16.3]} 20. cxb5 {[%clk 0:02:05.3]} 20... c4 {[%clk 0:01:17.1]}
21. Rc1 {[%clk 0:02:00.1]} 21... Qc5+ {[%clk 0:01:11]} 22. Be3 {[%clk
0:02:01.1]} 22... Qb4 {[%clk 0:01:10.5]} 23. Bxc4 {[%clk 0:01:56.2]} 23... Qxb2
{[%clk 0:01:10.7]} 24. Bd4 {[%clk 0:01:47.3]} 24... Qb4 {[%clk 0:01:03.6]} 25.
Qc3 {[%clk 0:01:19.8]} 25... Qe7 {[%clk 0:00:37.2]} 26. d6+ {[%clk 0:01:20.4]}
26... Qe6 {[%clk 0:00:31.1]} 27. Bxe6+ {[%clk 0:01:21.3]} 27... Bxe6 {[%clk
0:00:33]} 28. Nf4 {[%clk 0:01:21.3]} 28... Bxa2 {[%clk 0:00:32.3]} 29. Nd5
{[%clk 0:01:21.4]} 29... Nxd6 {[%clk 0:00:31.8]} 30. Bxf6 {[%clk 0:01:06.1]}
30... Bxf6 {[%clk 0:00:25.8]} 31. Nxf6+ {[%clk 0:01:06.8]} 31... Rxf6 {[%clk
0:00:21.2]} 32. Qxf6 {[%clk 0:01:06.6]} 32... Nxe4 {[%clk 0:00:18.6]} 33. Qf7+
{[%clk 0:01:07.4]} 33... Bxf7 {[%clk 0:00:19.1]} 34. Rc7 {[%clk 0:01:03.9]}
34... Bd5 {[%clk 0:00:13.7]} 35. Rd1 {[%clk 0:01:02.3]} 35... Rd8 {[%clk
0:00:12.4]} 36. Rxa7 {[%clk 0:01:00.7]} 36... Nc3 {[%clk 0:00:13]} 37. Rd2
{[%clk 0:00:55.7]} 37... Rb8 {[%clk 0:00:10.9]} 38. Rc7 {[%clk 0:00:51.9]} 38...
Rxb5 {[%clk 0:00:07.4]} 39. Rxc3 {[%clk 0:00:50.6]} 39... Rb1+ {[%clk
0:00:07.8]} 40. Kf2 {[%clk 0:00:51.4]} 40... Be6 {[%clk 0:00:07.5]} 41. Rc7
{[%clk 0:00:48.6]} 41... Rb8 {[%clk 0:00:06.9]} 42. Re2 {[%clk 0:00:46.9]} 42...
Bf5 {[%clk 0:00:06.2]} 43. Ree7 {[%clk 0:00:46.7]} 43... h5 {[%clk 0:00:06.2]}
44. Rg7+ {[%clk 0:00:47.2]} 44... Kh8 {[%clk 0:00:07.3]} 45. Rh7+ {[%clk
0:00:48]} 45... Kg8 {[%clk 0:00:08.2]} 46. Rcg7+ {[%clk 0:00:48.8]} 46... Kf8
{[%clk 0:00:09.1]} 47. Rh8+ {[%clk 0:00:49.1]} 47... Kxg7 {[%clk 0:00:10]} 48.
Rxb8 {[%clk 0:00:50.1]} 48... Kf6 {[%clk 0:00:10.8]} 49. h4 {[%clk 0:00:51.4]}
49... Ke6 {[%clk 0:00:10.5]} 50. Ke3 {[%clk 0:00:52.1]} 50... Ke5 {[%clk
0:00:10.9]} 51. Rb6 {[%clk 0:00:49.6]} 51... Bc2 {[%clk 0:00:09.8]} 52. g3
{[%clk 0:00:50.4]} 52... Bf5 {[%clk 0:00:10.1]} 53. Rb5+ {[%clk 0:00:50.5]}
53... Kf6 {[%clk 0:00:10.8]} 54. Kf4 {[%clk 0:00:51.5]} 54... Bc2 {[%clk
0:00:11.5]} 55. Rc5 {[%clk 0:00:50.8]} 55... Bb1 {[%clk 0:00:11.9]} 56. Rc6+
{[%clk 0:00:51.5]} 56... Kf7 {[%clk 0:00:12.5]} 57. Kg5 {[%clk 0:00:52.7]} 57...
Kg7 {[%clk 0:00:12.8]} 58. Rb6 {[%clk 0:00:52]} 58... Bc2 {[%clk 0:00:13.3]} 59.
Rb7+ {[%clk 0:00:50.9]} 59... Kf8 {[%clk 0:00:13.8]} 60. Kf6 {[%clk 0:00:51]}
60... Ke8 {[%clk 0:00:11.8]} 61. Rg7 {[%clk 0:00:50.9]} 61... Kf8 {[%clk
0:00:11.8]} 62. Rxg6 {[%clk 0:00:51.9]} 62... Bxg6 {[%clk 0:00:12.5]} 63. Kxg6
{[%clk 0:00:53.2]} 63... Kg8 {[%clk 0:00:13.6]} 64. Kxh5 {[%clk 0:00:54.5]}
64... Kg7 {[%clk 0:00:14.8]} 65. Kg5 {[%clk 0:00:55.8]} 65... Kh7 {[%clk
0:00:15.7]} 66. Kf6 {[%clk 0:00:57]} 66... Kh6 {[%clk 0:00:16.4]} 67. g4 {[%clk
0:00:58]} 67... Kh7 {[%clk 0:00:17.6]} 68. Kf7 {[%clk 0:00:59.2]} 68... Kh6
{[%clk 0:00:18.6]} 69. g5+ {[%clk 0:01:00.4]} 69... Kh7 {[%clk 0:00:19.4]} 70.
g6+ {[%clk 0:01:01.7]} 70... Kh8 {[%clk 0:00:20.8]} 71. g7+ {[%clk 0:01:02.9]}
71... Kh7 {[%clk 0:00:22]} 72. g8=Q+ {[%clk 0:01:04.1]} 72... Kh6 {[%clk
0:00:23.9]} 73. Qg6# {[%clk 0:01:04.9]} 1

[Event "Open Nuevo Centro. Jornada 2"]
[Site "Chess.com"]
[Date "2020.06.26"]
[Round "3"]
[White "Alvarez Usina, Joan"]
[Black "Camison Zornoza, Cesar"]
[Result "0-1"]
[WhiteElo "868"]
[BlackElo "1731"]
[TimeControl "180+2"]
[EndTime "10:54:37 PDT"]
[Termination "Victoria de cczchess por jaque mate"]

1. d4 {[%clk 0:03:01.9]} 1... Nf6 {[%clk 0:03:01.1]} 2. Bf4 {[%clk 0:03:02.6]}
2... c5 {[%clk 0:03:01.3]} 3. e4 {[%clk 0:03:03.5]} 3... cxd4 {[%clk 0:03:00.1]}
4. f3 {[%clk 0:03:04.2]} 4... d6 {[%clk 0:03:00.5]} 5. Qxd4 {[%clk 0:03:04.3]}
5... Nc6 {[%clk 0:03:00.7]} 6. Qa4 {[%clk 0:03:01.5]} 6... Bd7 {[%clk
0:03:00.3]} 7. c3 {[%clk 0:03:00.4]} 7... g6 {[%clk 0:03:00.2]} 8. Nh3 {[%clk
0:02:56.7]} 8... Bg7 {[%clk 0:03:01.4]} 9. Ng5 {[%clk 0:02:55.4]} 9... O-O
{[%clk 0:03:01.9]} 10. Nxh7 {[%clk 0:02:54.2]} 10... Kxh7 {[%clk 0:03:01.2]} 11.
Bxd6 {[%clk 0:02:54.5]} 11... exd6 {[%clk 0:03:01.6]} 12. Qxc6 {[%clk
0:02:55.2]} 12... Bxc6 {[%clk 0:03:02.1]} 13. Ba6 {[%clk 0:02:55.3]} 13... bxa6
{[%clk 0:03:02.4]} 14. Na3 {[%clk 0:02:55.8]} 14... Bxe4 {[%clk 0:03:02.5]} 15.
Nb5 {[%clk 0:02:56.3]} 15... Qe7 {[%clk 0:03:00.8]} 16. Rb1 {[%clk 0:02:56.7]}
16... Bd3+ {[%clk 0:03:01.4]} 17. Kf2 {[%clk 0:02:57]} 17... Qe2+ {[%clk
0:03:01.7]} 18. Kg3 {[%clk 0:02:57.1]} 18... Nh5+ {[%clk 0:03:02.8]} 19. Kh4
{[%clk 0:02:57.2]} 19... Bf6+ {[%clk 0:03:01.4]} 20. Kg4 {[%clk 0:02:57.5]}
20... Qxg2# {[%clk 0:03:01]} 0

[Event "Open Nuevo Centro. Jornada 2"]
[Site "Chess.com"]
[Date "2020.06.26"]
[Round "3"]
[White "Mora Bort, Miguel Ángel"]
[Black "Gerona Maura, Jesus"]
[Result "0-1"]
[WhiteElo "1152"]
[BlackElo "1755"]
[TimeControl "180+2"]
[EndTime "10:55:00 PDT"]
[Termination "Victoria de Retistente por abandono"]

1. d4 {[%clk 0:03:01.9]} 1... d5 {[%clk 0:02:59.4]} 2. c4 {[%clk 0:02:57.7]}
2... e5 {[%clk 0:02:59.9]} 3. dxe5 {[%clk 0:02:51.6]} 3... d4 {[%clk 0:03:00]}
4. Nf3 {[%clk 0:02:49.7]} 4... Nc6 {[%clk 0:02:59.5]} 5. Bg5 {[%clk 0:02:39.2]}
5... Be7 {[%clk 0:02:53.4]} 6. Bxe7 {[%clk 0:02:39.4]} 6... Ngxe7 {[%clk
0:02:54.1]} 7. e3 {[%clk 0:02:28.6]} 7... dxe3 {[%clk 0:02:47.7]} 8. Qxd8+
{[%clk 0:02:28.4]} 8... Nxd8 {[%clk 0:02:48.6]} 9. fxe3 {[%clk 0:02:25.8]} 9...
Nf5 {[%clk 0:02:48.2]} 10. e4 {[%clk 0:02:25.4]} 10... Ne3 {[%clk 0:02:47.5]}
11. Nbd2 {[%clk 0:02:05.4]} 11... Nc2+ {[%clk 0:02:46.8]} 12. Ke2 {[%clk
0:02:02.9]} 12... Nxa1 {[%clk 0:02:47.5]} 0

[Event "Open Nuevo Centro. Jornada 2"]
[Site "Chess.com"]
[Date "2020.06.26"]
[Round "3"]
[White "Más Ripoll, Vicente"]
[Black "Vicent Lázaro, Elena"]
[Result "1-0"]
[WhiteElo "1007"]
[BlackElo "650"]
[TimeControl "180+2"]
[EndTime "10:55:11 PDT"]
[Termination "Victoria de menut por abandono"]

1. e4 {[%clk 0:03:01.9]} 1... e6 {[%clk 0:02:55.4]} 2. d4 {[%clk 0:03:02.1]}
2... c5 {[%clk 0:02:55.7]} 3. d5 {[%clk 0:03:01.7]} 3... Na6 {[%clk 0:02:54.6]}
4. dxe6 {[%clk 0:03:01.8]} 4... fxe6 {[%clk 0:02:51.6]} 5. Bxa6 {[%clk 0:03:02]}
5... bxa6 {[%clk 0:02:49.6]} 6. Nf3 {[%clk 0:03:00.8]} 6... Bd6 {[%clk
0:02:44.7]} 7. Qxd6 {[%clk 0:02:58.8]} 7... Rb8 {[%clk 0:02:41.5]} 8. Qxb8
{[%clk 0:02:58.4]} 8... Qf6 {[%clk 0:02:38]} 9. Qxc8+ {[%clk 0:02:56.7]} 9...
Kf7 {[%clk 0:02:37.4]} 10. e5 {[%clk 0:02:14.9]} 10... Qg6 {[%clk 0:02:23.3]}
11. Qxd7+ {[%clk 0:02:12.4]} 1

[Event "Open Nuevo Centro. Jornada 2"]
[Site "Chess.com"]
[Date "2020.06.26"]
[Round "3"]
[White "Torres Biosca, Roberto"]
[Black "Sanchis Bon, Sergi"]
[Result "0-1"]
[WhiteElo "634"]
[BlackElo "1022"]
[TimeControl "180+2"]
[EndTime "10:55:57 PDT"]
[Termination "Victoria de Sergi_2011 por jaque mate"]

1. e4 {[%clk 0:03:01.7]} 1... e5 {[%clk 0:02:58.7]} 2. Bc4 {[%clk 0:03:02.2]}
2... Qf6 {[%clk 0:02:58.2]} 3. Nh3 {[%clk 0:02:58.8]} 3... d6 {[%clk 0:02:55.7]}
4. Bb5+ {[%clk 0:02:58]} 4... c6 {[%clk 0:02:53.7]} 5. Bc4 {[%clk 0:02:54.2]}
5... Bxh3 {[%clk 0:02:49.3]} 6. gxh3 {[%clk 0:02:53.7]} 6... d5 {[%clk
0:02:49.4]} 7. exd5 {[%clk 0:02:54.2]} 7... cxd5 {[%clk 0:02:49.8]} 8. Bb5+
{[%clk 0:02:46.6]} 8... Nd7 {[%clk 0:02:42.6]} 9. Qf3 {[%clk 0:02:37.9]} 9...
Qxf3 {[%clk 0:02:30.3]} 10. Be2 {[%clk 0:02:27.2]} 10... Qf6 {[%clk 0:02:13.3]}
11. Nc3 {[%clk 0:02:21.5]} 11... Bc5 {[%clk 0:02:10.8]} 12. Nxd5 {[%clk
0:02:20.5]} 12... Qxf2+ {[%clk 0:02:09.6]} 13. Kd1 {[%clk 0:02:18.8]} 13... Qg2
{[%clk 0:02:06.7]} 14. Nc7+ {[%clk 0:02:15.3]} 14... Kf8 {[%clk 0:02:03.5]} 15.
Nxa8 {[%clk 0:02:13.6]} 15... Qxh1+ {[%clk 0:02:00.6]} 16. Bf1 {[%clk
0:02:11.8]} 16... Qxf1# {[%clk 0:02:00.8]} 0

[Event "Open Nuevo Centro. Jornada 2"]
[Site "Chess.com"]
[Date "2020.06.26"]
[Round "3"]
[White "Bosch Jordà, Ricard"]
[Black "Conejero Martínez, Víctor"]
[Result "1-0"]
[WhiteElo "1765"]
[BlackElo "1195"]
[TimeControl "180+2"]
[EndTime "10:56:31 PDT"]
[Termination "Victoria de UltimateLimo por jaque mate"]

1. e4 {[%clk 0:03:01.9]} 1... c5 {[%clk 0:03:00.1]} 2. Nf3 {[%clk 0:03:01.8]}
2... Nc6 {[%clk 0:03:00.5]} 3. d4 {[%clk 0:03:02.8]} 3... cxd4 {[%clk 0:03:01]}
4. Nxd4 {[%clk 0:03:04.6]} 4... e5 {[%clk 0:03:01.9]} 5. Nb5 {[%clk 0:03:05.2]}
5... a6 {[%clk 0:03:01.3]} 6. N5a3 {[%clk 0:03:05.5]} 6... Nf6 {[%clk
0:02:54.7]} 7. Nc3 {[%clk 0:03:05.4]} 7... b5 {[%clk 0:02:55.5]} 8. Nd5 {[%clk
0:02:59.3]} 8... d6 {[%clk 0:02:37.6]} 9. Bg5 {[%clk 0:02:52.3]} 9... Be7 {[%clk
0:02:33.7]} 10. Bxf6 {[%clk 0:02:15.3]} 10... Bxf6 {[%clk 0:02:31.2]} 11. c3
{[%clk 0:02:12.7]} 11... Ne7 {[%clk 0:02:22.1]} 12. Nxf6+ {[%clk 0:02:08.8]}
12... gxf6 {[%clk 0:02:22.6]} 13. Nc2 {[%clk 0:02:10]} 13... f5 {[%clk
0:02:23.2]} 14. g3 {[%clk 0:02:09]} 14... fxe4 {[%clk 0:02:22.2]} 15. Bg2 {[%clk
0:02:10]} 15... d5 {[%clk 0:02:22.1]} 16. Ne3 {[%clk 0:02:09.5]} 16... Bb7
{[%clk 0:02:21.9]} 17. Qh5 {[%clk 0:02:06.1]} 17... d4 {[%clk 0:02:14.7]} 18.
cxd4 {[%clk 0:02:00.4]} 18... exd4 {[%clk 0:02:15.5]} 19. Nf5 {[%clk 0:01:59.9]}
19... Qa5+ {[%clk 0:02:15.2]} 20. Kf1 {[%clk 0:01:57]} 20... d3 {[%clk
0:02:09.9]} 21. Nd6+ {[%clk 0:01:52.4]} 21... Kf8 {[%clk 0:02:04.9]} 22. Qxf7#
{[%clk 0:01:51.6]} 1

[Event "Open Nuevo Centro. Jornada 2"]
[Site "Chess.com"]
[Date "2020.06.26"]
[Round "3"]
[White "Ahullana Martí, Blai"]
[Black "Zakharash, Georgii"]
[Result "0-1"]
[WhiteElo "695"]
[BlackElo "1061"]
[TimeControl "180+2"]
[EndTime "10:56:38 PDT"]
[Termination "Victoria de georgiizakharash por abandono"]

1. d4 {[%clk 0:03:01.9]} 1... d5 {[%clk 0:02:59.5]} 2. c4 {[%clk 0:02:53.5]}
2... dxc4 {[%clk 0:02:58.8]} 3. Nc3 {[%clk 0:02:53.6]} 3... a6 {[%clk
0:02:56.4]} 4. a3 {[%clk 0:02:53.9]} 4... b5 {[%clk 0:02:57]} 5. a4 {[%clk
0:02:51.5]} 5... c6 {[%clk 0:02:56.3]} 6. axb5 {[%clk 0:02:50.5]} 6... cxb5
{[%clk 0:02:56.3]} 7. Nxb5 {[%clk 0:02:51.4]} 7... Bb7 {[%clk 0:02:38.7]} 8. Bf4
{[%clk 0:02:48.6]} 8... axb5 {[%clk 0:02:35.8]} 9. Rxa8 {[%clk 0:02:47.6]} 9...
Bxa8 {[%clk 0:02:35.2]} 10. Bxb8 {[%clk 0:02:46]} 10... Qxb8 {[%clk 0:02:34.8]}
11. e4 {[%clk 0:02:46]} 11... Bxe4 {[%clk 0:02:33.4]} 12. b3 {[%clk 0:02:43.8]}
12... c3 {[%clk 0:02:29.8]} 13. Ne2 {[%clk 0:02:40.6]} 13... b4 {[%clk
0:02:25.5]} 14. Nf4 {[%clk 0:02:37.5]} 14... Qxf4 {[%clk 0:02:22.8]} 15. Bb5+
{[%clk 0:02:34.8]} 15... Kd8 {[%clk 0:02:16.6]} 16. O-O {[%clk 0:02:31.3]} 16...
Qg5 {[%clk 0:02:10.1]} 17. g3 {[%clk 0:02:30.2]} 17... Qxb5 {[%clk 0:02:08.2]}
18. Re1 {[%clk 0:02:17.2]} 18... Nf6 {[%clk 0:01:57.8]} 19. f3 {[%clk
0:02:15.3]} 19... Bg6 {[%clk 0:01:52.7]} 0

[Event "Open Nuevo Centro. Jornada 2"]
[Site "Chess.com"]
[Date "2020.06.26"]
[Round "3"]
[White "Chernikov, Vladimir"]
[Black "Pallardo Lozoya, Jose Vicente"]
[Result "0-1"]
[WhiteElo "2274"]
[BlackElo "2307"]
[TimeControl "180+2"]
[EndTime "10:56:41 PDT"]
[Termination "Victoria de PallardoChess por abandono"]

1. b3 {[%clk 0:02:54]} 1... e5 {[%clk 0:02:57.9]} 2. Bb2 {[%clk 0:02:55.9]} 2...
Nc6 {[%clk 0:02:59]} 3. c4 {[%clk 0:02:56.6]} 3... d6 {[%clk 0:02:59.8]} 4. Nc3
{[%clk 0:02:55.2]} 4... g6 {[%clk 0:03:00.6]} 5. Nf3 {[%clk 0:02:54.5]} 5... Bg7
{[%clk 0:03:01.7]} 6. e3 {[%clk 0:02:55.5]} 6... Nge7 {[%clk 0:02:03.3]} 7. d4
{[%clk 0:02:52.5]} 7... exd4 {[%clk 0:02:04.4]} 8. Nxd4 {[%clk 0:02:49.4]} 8...
Nxd4 {[%clk 0:02:01.7]} 9. exd4 {[%clk 0:02:50.2]} 9... O-O {[%clk 0:02:03]} 10.
Be2 {[%clk 0:02:47.5]} 10... Nf5 {[%clk 0:02:04]} 11. d5 {[%clk 0:02:26.7]}
11... Nd4 {[%clk 0:01:40.2]} 12. O-O {[%clk 0:02:19.5]} 12... Nxe2+ {[%clk
0:01:37.9]} 13. Qxe2 {[%clk 0:02:18.1]} 13... Bf5 {[%clk 0:01:33.7]} 14. Rfe1
{[%clk 0:02:13.7]} 14... Qg5 {[%clk 0:01:25.7]} 15. Ne4 {[%clk 0:02:01.3]} 15...
Bxe4 {[%clk 0:01:25.1]} 0

[Event "Open Nuevo Centro. Jornada 2"]
[Site "Chess.com"]
[Date "2020.06.26"]
[Round "3"]
[White "Donate Moreno, Silvia"]
[Black "Denis Cazacu, Ioan"]
[Result "1-0"]
[WhiteElo "1781"]
[BlackElo "1397"]
[TimeControl "180+2"]
[EndTime "10:56:48 PDT"]
[Termination "Victoria de 2camarones por abandono"]

1. e4 {[%clk 0:03:01.9]} 1... c5 {[%clk 0:02:54.8]} 2. Nf3 {[%clk 0:03:02.4]}
2... Nc6 {[%clk 0:02:54.7]} 3. d4 {[%clk 0:03:03.3]} 3... cxd4 {[%clk
0:02:56.5]} 4. Nxd4 {[%clk 0:03:05.2]} 4... g6 {[%clk 0:02:57]} 5. c4 {[%clk
0:03:05.4]} 5... Bg7 {[%clk 0:02:57.6]} 6. Be3 {[%clk 0:03:06.4]} 6... Nf6
{[%clk 0:02:58.1]} 7. Nc3 {[%clk 0:03:07.1]} 7... O-O {[%clk 0:02:56.6]} 8. Be2
{[%clk 0:03:07.6]} 8... d6 {[%clk 0:02:54.5]} 9. O-O {[%clk 0:03:08.4]} 9... a6
{[%clk 0:02:53.6]} 10. Qd2 {[%clk 0:03:08.6]} 10... Qc7 {[%clk 0:02:49.9]} 11.
h3 {[%clk 0:03:07.7]} 11... Ne5 {[%clk 0:02:50.5]} 12. Rac1 {[%clk 0:03:01.7]}
12... Nxc4 {[%clk 0:02:40.9]} 13. Bxc4 {[%clk 0:03:01.2]} 13... Qxc4 {[%clk
0:02:41.7]} 14. Nd5 {[%clk 0:03:01.7]} 14... Qxa2 {[%clk 0:02:22.4]} 15. Ra1
{[%clk 0:02:58.4]} 15... Qc4 {[%clk 0:02:10.4]} 16. Rfc1 {[%clk 0:02:58.5]}
16... Nxe4 {[%clk 0:02:07.3]} 17. Rxc4 {[%clk 0:02:58.5]} 17... Nxd2 {[%clk
0:02:07.4]} 18. Bxd2 {[%clk 0:02:59.1]} 18... b5 {[%clk 0:02:08.7]} 19. Nxe7+
{[%clk 0:02:52.2]} 19... Kh8 {[%clk 0:02:07.6]} 20. Nxb5 {[%clk 0:02:51.3]}
20... Be6 {[%clk 0:02:04.4]} 21. Rca4 {[%clk 0:02:51.5]} 21... Bxb2 {[%clk
0:02:02.7]} 22. Bc3+ {[%clk 0:02:45.2]} 22... Bxc3 {[%clk 0:02:01.7]} 23. Nxc3
{[%clk 0:02:45.7]} 23... Bb3 {[%clk 0:01:59.1]} 24. Rxa6 {[%clk 0:02:43.3]}
24... Rxa6 {[%clk 0:01:58.4]} 25. Rxa6 {[%clk 0:02:45.2]} 25... Re8 {[%clk
0:01:58.3]} 26. Ned5 {[%clk 0:02:44.3]} 26... Re1+ {[%clk 0:01:52]} 27. Kh2
{[%clk 0:02:44.5]} 27... Bc4 {[%clk 0:01:50.1]} 28. Rxd6 {[%clk 0:02:44.5]}
28... Rf1 {[%clk 0:01:48.3]} 29. Kg3 {[%clk 0:02:44.4]} 29... Bd3 {[%clk
0:01:39.3]} 30. Ne3 {[%clk 0:02:44.1]} 1

[Event "Open Nuevo Centro. Jornada 2"]
[Site "Chess.com"]
[Date "2020.06.26"]
[Round "3"]
[White "Rabbani Perez, Oumaima "]
[Black "Hernández Tomás, Efrén"]
[Result "0-1"]
[WhiteElo "724"]
[BlackElo "1040"]
[TimeControl "180+2"]
[EndTime "10:57:20 PDT"]
[Termination "Victoria de EfrenHT10 por jaque mate"]

1. e3 {[%clk 0:02:57.7]} 1... e5 {[%clk 0:03:00.3]} 2. Bd3 {[%clk 0:02:55.4]}
2... Nf6 {[%clk 0:03:00.4]} 3. Nf3 {[%clk 0:02:54.8]} 3... e4 {[%clk 0:03:00.1]}
4. Ne5 {[%clk 0:02:53.3]} 4... exd3 {[%clk 0:02:59.2]} 5. cxd3 {[%clk
0:02:51.5]} 5... d6 {[%clk 0:02:57.2]} 6. Qa4+ {[%clk 0:02:41.3]} 6... Bd7
{[%clk 0:02:52.2]} 7. Nxd7 {[%clk 0:02:39]} 7... Qxd7 {[%clk 0:02:51.4]} 8.
Qxd7+ {[%clk 0:02:39.2]} 8... Nbxd7 {[%clk 0:02:51.7]} 9. Nc3 {[%clk 0:02:35.4]}
9... Nc5 {[%clk 0:02:51.6]} 10. Nb5 {[%clk 0:02:35.5]} 10... Nxd3+ {[%clk
0:02:50.3]} 11. Ke2 {[%clk 0:02:35.5]} 11... Nxc1+ {[%clk 0:02:50]} 12. Kd1
{[%clk 0:02:31.8]} 12... O-O-O {[%clk 0:02:48.6]} 13. Nxa7+ {[%clk 0:02:31.5]}
13... Kb8 {[%clk 0:02:48.4]} 14. Nb5 {[%clk 0:02:28.9]} 14... Nd3 {[%clk
0:02:46.4]} 15. Nd4 {[%clk 0:02:23.7]} 15... Nxf2+ {[%clk 0:02:45]} 16. Ke2
{[%clk 0:02:19.5]} 16... Nxh1 {[%clk 0:02:42.9]} 17. Rc1 {[%clk 0:02:07.6]}
17... c5 {[%clk 0:02:41.1]} 18. Rxh1 {[%clk 0:02:09.5]} 18... cxd4 {[%clk
0:02:41.4]} 19. exd4 {[%clk 0:02:08.5]} 19... Re8+ {[%clk 0:02:42]} 20. Kd3
{[%clk 0:02:07.5]} 20... d5 {[%clk 0:02:42.9]} 21. Rc1 {[%clk 0:02:07.6]} 21...
Bb4 {[%clk 0:02:40.3]} 22. Rd1 {[%clk 0:02:03.7]} 22... Ng4 {[%clk 0:02:36.3]}
23. h3 {[%clk 0:02:01.8]} 23... Nf2+ {[%clk 0:02:34.9]} 24. Kc2 {[%clk
0:02:00.5]} 24... Nxd1 {[%clk 0:02:34.3]} 25. a3 {[%clk 0:01:59.2]} 25... Bxa3
{[%clk 0:02:32.8]} 26. bxa3 {[%clk 0:01:58.9]} 26... Nf2 {[%clk 0:02:30.4]} 27.
Kc1 {[%clk 0:01:55.5]} 27... Rc8+ {[%clk 0:02:30.1]} 28. Kb1 {[%clk 0:01:54.1]}
28... Rc4 {[%clk 0:02:29.8]} 29. d3 {[%clk 0:01:49.8]} 29... Nxd3 {[%clk
0:02:29.7]} 30. a4 {[%clk 0:01:46]} 30... Rxa4 {[%clk 0:02:25.7]} 31. g4 {[%clk
0:01:40.6]} 31... Rc8 {[%clk 0:02:22]} 32. g5 {[%clk 0:01:38.4]} 32... Rc1#
{[%clk 0:02:20.3]} 0

[Event "Open Nuevo Centro. Jornada 2"]
[Site "Chess.com"]
[Date "2020.06.26"]
[Round "3"]
[White "Martinez Hernandez, Paula"]
[Black "Clement Gómez, José Antonio"]
[Result "0-1"]
[WhiteElo "2039"]
[BlackElo "2484"]
[TimeControl "180+2"]
[EndTime "10:57:40 PDT"]
[Termination "Victoria de P4AD por abandono"]

1. e4 {[%clk 0:03:01.9]} 1... c5 {[%clk 0:03:00.5]} 2. Nc3 {[%clk 0:02:55.7]}
2... Nc6 {[%clk 0:03:00.6]} 3. g3 {[%clk 0:02:55.1]} 3... g6 {[%clk 0:03:01.2]}
4. Bg2 {[%clk 0:02:53]} 4... Bg7 {[%clk 0:03:02.6]} 5. Nge2 {[%clk 0:02:54.4]}
5... Rb8 {[%clk 0:03:04]} 6. d3 {[%clk 0:02:55.6]} 6... b5 {[%clk 0:03:04.5]} 7.
Be3 {[%clk 0:02:56.7]} 7... b4 {[%clk 0:03:05.4]} 8. Na4 {[%clk 0:02:54.4]} 8...
d6 {[%clk 0:03:05.8]} 9. c3 {[%clk 0:02:50.5]} 9... bxc3 {[%clk 0:03:03.4]} 10.
bxc3 {[%clk 0:02:43.1]} 10... e5 {[%clk 0:03:04]} 11. O-O {[%clk 0:02:32.9]}
11... Nge7 {[%clk 0:03:03.3]} 12. c4 {[%clk 0:02:31.6]} 12... O-O {[%clk
0:03:02.5]} 13. Nac3 {[%clk 0:02:32.7]} 13... Be6 {[%clk 0:02:43.8]} 14. Nd5
{[%clk 0:02:28]} 14... Qd7 {[%clk 0:02:37.9]} 15. Qd2 {[%clk 0:02:22.9]} 15...
f5 {[%clk 0:02:35.5]} 16. Bh6 {[%clk 0:02:17.8]} 16... Nd4 {[%clk 0:02:30.2]}
17. Nec3 {[%clk 0:02:13.2]} 17... fxe4 {[%clk 0:01:49.5]} 18. Rab1 {[%clk
0:02:00.7]} 18... Nf3+ {[%clk 0:01:35.9]} 19. Bxf3 {[%clk 0:01:55]} 19... exf3
{[%clk 0:01:37.8]} 20. Rxb8 {[%clk 0:01:47.1]} 20... Rxb8 {[%clk 0:01:34.6]} 21.
Qg5 {[%clk 0:01:30.4]} 21... Bxd5 {[%clk 0:01:31.7]} 22. Nxd5 {[%clk 0:01:29.6]}
22... Nxd5 {[%clk 0:01:32.3]} 23. cxd5 {[%clk 0:01:30.9]} 23... Qh3 {[%clk
0:01:32.3]} 0